[Event "December 19 Early 2023"]
[Site "https://www.chess.com"]
[Date "2023.12.19"]
[Round "7"]
[White "Krysa, Leandro"]
[Black "Martinez Reyes, Pedro Ramon"]
[Result "1/2-1/2"]
[Board "60"]
[TimeControl "180+1"]
[WhiteFideId "116807"]
[BlackFideId "3901807"]
[WhiteElo "2495"]
[BlackElo "2327"]
[WhiteTeam "ARG"]
[BlackTeam "VEN"]
[WhiteClock "0:00:07"]
[BlackClock "0:00:10"]

1. e4 {[%clk 0:03:00]}  c5 {[%clk 0:02:54]} 2. Nf3 {[%clk 0:03:00]}  Nc6 {[%clk 0:02:54]} 3. Bb5 {[%clk 0:02:59]}  d6 {[%clk 0:02:54]} 4. O-O {[%clk 0:02:56]}  Bd7 {[%clk 0:02:54]} 5. Re1 {[%clk 0:02:56]}  Nf6 {[%clk 0:02:54]} 6. c3 {[%clk 0:02:55]}  a6 {[%clk 0:02:55]} 7. Bf1 {[%clk 0:02:55]}  Bg4 {[%clk 0:02:55]} 8. h3 {[%clk 0:02:55]}  Bxf3 {[%clk 0:02:54]} 9. Qxf3 {[%clk 0:02:55]}  g6 {[%clk 0:02:55]} 10. d3 {[%clk 0:02:55]}  Bg7 {[%clk 0:02:54]} 11. Qd1 {[%clk 0:02:55]}  O-O {[%clk 0:02:52]} 12. Nd2 {[%clk 0:02:53]}  b5 {[%clk 0:02:51]} 13. Nf3 {[%clk 0:02:53]}  Nd7 {[%clk 0:02:51]} 14. Be3 {[%clk 0:02:50]}  e5 {[%clk 0:02:39]} 15. a4 {[%clk 0:02:42]}  h6 {[%clk 0:02:34]} 16. axb5 {[%clk 0:02:38]}  axb5 {[%clk 0:02:35]} 17. Rxa8 {[%clk 0:02:38]}  Qxa8 {[%clk 0:02:36]} 18. Qb3 {[%clk 0:02:38]}  Qb7 {[%clk 0:02:18]} 19. Ra1 {[%clk 0:02:35]}  Kh7 {[%clk 0:02:16]} 20. h4 {[%clk 0:02:31]}  f5 {[%clk 0:02:13]} 21. h5 {[%clk 0:02:08]}  f4 {[%clk 0:00:55]} 22. hxg6+ {[%clk 0:02:05]}  Kxg6 {[%clk 0:00:56]} 23. Qe6+ {[%clk 0:01:44]}  Rf6 {[%clk 0:00:50]} 24. Qg4+ {[%clk 0:01:32]}  Kh7 {[%clk 0:00:50]} 25. Bd2 {[%clk 0:01:28]}  Rg6 {[%clk 0:00:42]} 26. Qh3 {[%clk 0:01:23]}  Rf6 {[%clk 0:00:32]} 27. Nh4 {[%clk 0:01:13]}  Ne7 {[%clk 0:00:32]} 28. Be2 {[%clk 0:01:12]}  Nf8 {[%clk 0:00:31]} 29. Bh5 {[%clk 0:01:07]}  b4 {[%clk 0:00:28]} 30. c4 {[%clk 0:01:03]}  Ne6 {[%clk 0:00:25]} 31. f3 {[%clk 0:00:37]}  Ng5 {[%clk 0:00:24]} 32. Qg4 {[%clk 0:00:35]}  Rf8 {[%clk 0:00:20]} 33. b3 {[%clk 0:00:33]}  Bf6 {[%clk 0:00:17]} 34. Nf5 {[%clk 0:00:31]}  Nxf5 {[%clk 0:00:14]} 35. Qxf5+ {[%clk 0:00:31]}  Kh8 {[%clk 0:00:12]} 36. Qg6 {[%clk 0:00:30]}  Bg7 {[%clk 0:00:08]} 37. Be1 {[%clk 0:00:25]}  Rf6 {[%clk 0:00:05]} 38. Qe8+ {[%clk 0:00:25]}  Rf8 {[%clk 0:00:05]} 39. Qb5 {[%clk 0:00:24]}  Rb8 {[%clk 0:00:04]} 40. Qxb7 {[%clk 0:00:22]}  Rxb7 {[%clk 0:00:05]} 41. Bg6 {[%clk 0:00:20]}  Bf8 {[%clk 0:00:04]} 42. Bh4 {[%clk 0:00:19]}  Kg7 {[%clk 0:00:04]} 43. Bf5 {[%clk 0:00:19]}  Be7 {[%clk 0:00:04]} 44. Kf1 {[%clk 0:00:15]}  Nxf3 {[%clk 0:00:02]} 45. Bxe7 {[%clk 0:00:14]}  Nd2+ {[%clk 0:00:03]} 46. Ke2 {[%clk 0:00:13]}  Nxb3 {[%clk 0:00:04]} 47. Ra6 {[%clk 0:00:08]}  Nd4+ {[%clk 0:00:04]} 48. Kd1 {[%clk 0:00:08]}  Rxe7 {[%clk 0:00:05]} 49. Rxd6 {[%clk 0:00:07]}  Nxf5 {[%clk 0:00:05]} 50. exf5 {[%clk 0:00:07]}  Rf7 {[%clk 0:00:05]} 51. Rd5 {[%clk 0:00:06]}  Rxf5 {[%clk 0:00:06]} 52. Rxc5 {[%clk 0:00:07]}  Rg5 {[%clk 0:00:06]} 53. Rc7+ {[%clk 0:00:05]}  Kf6 {[%clk 0:00:06]} 54. c5 {[%clk 0:00:05]}  Rxg2 {[%clk 0:00:06]} 55. c6 {[%clk 0:00:06]}  b3 {[%clk 0:00:07]} 56. Rb7 {[%clk 0:00:06]}  Rc2 {[%clk 0:00:07]} 57. c7 {[%clk 0:00:06]}  f3 {[%clk 0:00:06]} 58. Rxb3 {[%clk 0:00:05]}  Rxc7 {[%clk 0:00:06]} 59. Ke1 {[%clk 0:00:06]}  Kf5 {[%clk 0:00:06]} 60. Kf2 {[%clk 0:00:06]}  e4 {[%clk 0:00:06]} 61. dxe4+ {[%clk 0:00:05]}  Kxe4 {[%clk 0:00:06]} 62. Rb4+ {[%clk 0:00:05]}  Kf5 {[%clk 0:00:07]} 63. Kxf3 {[%clk 0:00:06]}  Rc3+ {[%clk 0:00:08]} 64. Kg2 {[%clk 0:00:06]}  Kg5 {[%clk 0:00:06]} 65. Kh1 {[%clk 0:00:06]}  Rc5 {[%clk 0:00:06]} 66. Rb1 {[%clk 0:00:06]}  Rf5 {[%clk 0:00:07]} 67. Ra1 {[%clk 0:00:06]}  Re5 {[%clk 0:00:08]} 68. Rb1 {[%clk 0:00:06]}  Rf5 {[%clk 0:00:08]} 69. Ra1 {[%clk 0:00:07]}  Re5 {[%clk 0:00:09]} 70. Rb1 {[%clk 0:00:07]}  Rf5 {[%clk 0:00:10]} 1/2-1/2

[Event "December 19 Early 2023"]
[Site "https://www.chess.com"]
[Date "2023.12.19"]
[Round "7"]
[White "Maatman, Nick"]
[Black "Cattaneo, Marco"]
[Result "1-0"]
[Board "61"]
[TimeControl "180+1"]
[WhiteFideId "1040391"]
[BlackFideId "878332"]
[WhiteElo "2705"]
[BlackElo "2186"]
[WhiteTeam "NED"]
[BlackTeam "ITA"]
[WhiteClock "0:01:05"]
[BlackClock "0:00:13"]

1. d4 {[%clk 0:02:57]}  g6 {[%clk 0:02:59]} 2. e4 {[%clk 0:02:56]}  Bg7 {[%clk 0:03:00]} 3. Nf3 {[%clk 0:02:56]}  c6 {[%clk 0:03:00]} 4. c4 {[%clk 0:02:50]}  d5 {[%clk 0:03:00]} 5. e5 {[%clk 0:02:44]}  Bg4 {[%clk 0:02:56]} 6. Nc3 {[%clk 0:02:44]}  e6 {[%clk 0:02:54]} 7. Be3 {[%clk 0:02:37]}  Nd7 {[%clk 0:02:46]} 8. cxd5 {[%clk 0:02:32]}  cxd5 {[%clk 0:02:47]} 9. Nb5 {[%clk 0:02:27]}  Ne7 {[%clk 0:02:21]} 10. Nd6+ {[%clk 0:02:26]}  Kf8 {[%clk 0:02:22]} 11. Nxf7 {[%clk 0:02:21]}  Qa5+ {[%clk 0:02:05]} 12. Bd2 {[%clk 0:02:21]}  Qb6 {[%clk 0:02:05]} 13. Nxh8 {[%clk 0:02:18]}  Nf5 {[%clk 0:01:53]} 14. Bc3 {[%clk 0:01:50]}  Bxh8 {[%clk 0:01:47]} 15. h3 {[%clk 0:01:45]}  Bxf3 {[%clk 0:01:46]} 16. Qxf3 {[%clk 0:01:46]}  Kg8 {[%clk 0:01:47]} 17. Qd3 {[%clk 0:01:32]}  Rf8 {[%clk 0:01:21]} 18. O-O-O {[%clk 0:01:30]}  Bg7 {[%clk 0:01:08]} 19. Kb1 {[%clk 0:01:28]}  Ne7 {[%clk 0:01:05]} 20. f3 {[%clk 0:01:26]}  Nc6 {[%clk 0:01:04]} 21. Be2 {[%clk 0:01:22]}  a6 {[%clk 0:00:50]} 22. h4 {[%clk 0:01:22]}  Rc8 {[%clk 0:00:34]} 23. h5 {[%clk 0:01:22]}  Nf8 {[%clk 0:00:34]} 24. hxg6 {[%clk 0:01:22]}  hxg6 {[%clk 0:00:35]} 25. f4 {[%clk 0:01:18]}  Na5 {[%clk 0:00:28]} 26. Bxa5 {[%clk 0:01:17]}  Qxa5 {[%clk 0:00:28]} 27. Rc1 {[%clk 0:01:11]}  Rxc1+ {[%clk 0:00:25]} 28. Rxc1 {[%clk 0:01:12]}  Bh6 {[%clk 0:00:26]} 29. g3 {[%clk 0:01:12]}  Qd8 {[%clk 0:00:22]} 30. a3 {[%clk 0:01:10]}  Kg7 {[%clk 0:00:20]} 31. Bg4 {[%clk 0:01:08]}  Qe7 {[%clk 0:00:17]} 32. Qc3 {[%clk 0:01:07]}  Kf7 {[%clk 0:00:13]} 33. Qc8 {[%clk 0:01:05]} 1-0

[Event "December 19 Early 2023"]
[Site "https://www.chess.com"]
[Date "2023.12.19"]
[Round "7"]
[White "Jumabayev, Rinat"]
[Black "Kim, Sergey"]
[Result "1-0"]
[Board "65"]
[TimeControl "180+1"]
[WhiteFideId "13702661"]
[BlackFideId "13700570"]
[WhiteElo "2561"]
[BlackElo "2603"]
[WhiteTeam "KAZ"]
[BlackTeam "KAZ"]
[WhiteClock "0:00:04"]
[BlackClock "0:00:13"]

1. d4 {[%clk 0:02:55]}  Nf6 {[%clk 0:02:58]} 2. c4 {[%clk 0:02:55]}  g6 {[%clk 0:02:59]} 3. Nc3 {[%clk 0:02:51]}  Bg7 {[%clk 0:02:59]} 4. e4 {[%clk 0:02:51]}  d6 {[%clk 0:02:59]} 5. h3 {[%clk 0:02:51]}  O-O {[%clk 0:02:59]} 6. Nf3 {[%clk 0:02:50]}  e5 {[%clk 0:02:57]} 7. d5 {[%clk 0:02:50]}  a5 {[%clk 0:02:55]} 8. Be3 {[%clk 0:02:46]}  Na6 {[%clk 0:02:54]} 9. g4 {[%clk 0:02:44]}  Nc5 {[%clk 0:02:52]} 10. Nd2 {[%clk 0:02:45]}  Bd7 {[%clk 0:02:51]} 11. Be2 {[%clk 0:02:38]}  a4 {[%clk 0:02:51]} 12. h4 {[%clk 0:02:35]}  c6 {[%clk 0:02:50]} 13. h5 {[%clk 0:02:25]}  Ne8 {[%clk 0:02:41]} 14. g5 {[%clk 0:02:15]}  Nc7 {[%clk 0:02:41]} 15. Rc1 {[%clk 0:01:52]}  cxd5 {[%clk 0:02:31]} 16. exd5 {[%clk 0:01:40]}  N7a6 {[%clk 0:02:21]} 17. Nde4 {[%clk 0:01:36]}  Bf5 {[%clk 0:02:16]} 18. Ng3 {[%clk 0:01:33]}  Qd7 {[%clk 0:01:54]} 19. Nxf5 {[%clk 0:00:58]}  Qxf5 {[%clk 0:01:53]} 20. Bg4 {[%clk 0:00:46]}  Qd3 {[%clk 0:01:50]} 21. Be2 {[%clk 0:00:27]}  Qf5 {[%clk 0:01:49]} 22. Bg4 {[%clk 0:00:16]}  Qd3 {[%clk 0:01:48]} 23. Rh3 {[%clk 0:00:12]}  Qxc4 {[%clk 0:01:40]} 24. Be2 {[%clk 0:00:10]}  Qb4 {[%clk 0:01:37]} 25. Rc2 {[%clk 0:00:06]}  Rac8 {[%clk 0:01:14]} 26. a3 {[%clk 0:00:04]}  Qa5 {[%clk 0:01:06]} 27. Kf1 {[%clk 0:00:04]}  Qd8 {[%clk 0:00:51]} 28. Nb5 {[%clk 0:00:04]}  b6 {[%clk 0:00:40]} 29. Bg4 {[%clk 0:00:04]}  Rb8 {[%clk 0:00:37]} 30. Kg2 {[%clk 0:00:04]}  Nc7 {[%clk 0:00:37]} 31. Nc3 {[%clk 0:00:04]}  Qe8 {[%clk 0:00:26]} 32. Qh1 {[%clk 0:00:03]}  Nb5 {[%clk 0:00:22]} 33. hxg6 {[%clk 0:00:03]}  hxg6 {[%clk 0:00:22]} 34. Rh7 {[%clk 0:00:03]}  Nd4 {[%clk 0:00:20]} 35. Rc1 {[%clk 0:00:02]}  Nd3 {[%clk 0:00:19]} 36. Rxg7+ {[%clk 0:00:02]}  Kxg7 {[%clk 0:00:18]} 37. Qh6+ {[%clk 0:00:03]}  Kg8 {[%clk 0:00:13]} 38. Rh1 {[%clk 0:00:04]} 1-0

[Event "December 19 Early 2023"]
[Site "https://www.chess.com"]
[Date "2023.12.19"]
[Round "7"]
[White "Brodsky, David"]
[Black "Spata, German"]
[Result "1-0"]
[Board "66"]
[TimeControl "180+1"]
[WhiteFideId "2073250"]
[BlackFideId "113026"]
[WhiteElo "2811"]
[BlackElo "2260"]
[WhiteTeam "USA"]
[BlackTeam "ARG"]
[WhiteClock "0:00:08"]
[BlackClock "0:00:00"]

1. d4 {[%clk 0:03:00]}  d5 {[%clk 0:02:52]} 2. Nf3 {[%clk 0:03:00]}  e6 {[%clk 0:02:50]} 3. g3 {[%clk 0:02:54]}  Nf6 {[%clk 0:02:47]} 4. Bg2 {[%clk 0:02:55]}  b5 {[%clk 0:02:47]} 5. a4 {[%clk 0:02:52]}  b4 {[%clk 0:02:47]} 6. O-O {[%clk 0:02:52]}  a5 {[%clk 0:02:46]} 7. c4 {[%clk 0:02:50]}  bxc3 {[%clk 0:02:46]} 8. Nxc3 {[%clk 0:02:47]}  Be7 {[%clk 0:02:43]} 9. Ne5 {[%clk 0:02:47]}  O-O {[%clk 0:02:39]} 10. e4 {[%clk 0:02:44]}  Bb7 {[%clk 0:02:35]} 11. Qc2 {[%clk 0:02:36]}  Nbd7 {[%clk 0:02:26]} 12. Nxd7 {[%clk 0:02:30]}  Qxd7 {[%clk 0:02:26]} 13. e5 {[%clk 0:02:20]}  Ne8 {[%clk 0:01:59]} 14. Be3 {[%clk 0:02:19]}  Rc8 {[%clk 0:01:49]} 15. f4 {[%clk 0:02:04]}  c5 {[%clk 0:01:48]} 16. f5 {[%clk 0:01:49]}  cxd4 {[%clk 0:01:37]} 17. Bxd4 {[%clk 0:01:50]}  Rc4 {[%clk 0:01:32]} 18. Rad1 {[%clk 0:01:30]}  Rxd4 {[%clk 0:01:17]} 19. Rxd4 {[%clk 0:01:29]}  Bc5 {[%clk 0:01:17]} 20. Nb5 {[%clk 0:01:30]}  Qc6 {[%clk 0:00:55]} 21. Rc1 {[%clk 0:01:21]}  Bxd4+ {[%clk 0:00:50]} 22. Nxd4 {[%clk 0:01:22]}  Qd7 {[%clk 0:00:26]} 23. Bf1 {[%clk 0:01:14]}  exf5 {[%clk 0:00:20]} 24. Bb5 {[%clk 0:00:57]}  Qd8 {[%clk 0:00:19]} 25. Qxf5 {[%clk 0:00:50]}  Nc7 {[%clk 0:00:15]} 26. Bd3 {[%clk 0:00:36]}  g6 {[%clk 0:00:12]} 27. Qf6 {[%clk 0:00:28]}  Ne6 {[%clk 0:00:03]} 28. Qxd8 {[%clk 0:00:21]}  Rxd8 {[%clk 0:00:03]} 29. Nxe6 {[%clk 0:00:19]}  fxe6 {[%clk 0:00:04]} 30. Rc7 {[%clk 0:00:20]}  Bc8 {[%clk 0:00:04]} 31. Ra7 {[%clk 0:00:14]}  Bd7 {[%clk 0:00:03]} 32. Rxa5 {[%clk 0:00:14]}  Rb8 {[%clk 0:00:03]} 33. Bb5 {[%clk 0:00:14]}  Bxb5 {[%clk 0:00:03]} 34. Rxb5 {[%clk 0:00:14]}  Rc8 {[%clk 0:00:02]} 35. a5 {[%clk 0:00:13]}  Rc1+ {[%clk 0:00:02]} 36. Kf2 {[%clk 0:00:12]}  Ra1 {[%clk 0:00:02]} 37. b4 {[%clk 0:00:11]}  d4 {[%clk 0:00:02]} 38. Ke2 {[%clk 0:00:10]}  Ra3 {[%clk 0:00:02]} 39. Rb6 {[%clk 0:00:08]}  Rb3 {[%clk 0:00:02]} 40. a6 {[%clk 0:00:08]}  Rxb4 {[%clk 0:00:00]} 41. Rxb4 {[%clk 0:00:08]} 1-0

[Event "December 19 Early 2023"]
[Site "https://www.chess.com"]
[Date "2023.12.19"]
[Round "7"]
[White "Tulchynskyi, Feliks"]
[Black "Sahib Singh"]
[Result "1-0"]
[Board "73"]
[TimeControl "180+1"]
[WhiteFideId "34127895"]
[BlackFideId "25618342"]
[WhiteElo "2131"]
[BlackElo "2130"]
[WhiteTeam "UKR"]
[BlackTeam "IND"]
[WhiteClock "0:00:34"]
[BlackClock "0:00:11"]

1. d4 {[%clk 0:03:00]}  d5 {[%clk 0:02:58]} 2. c4 {[%clk 0:03:00]}  e6 {[%clk 0:02:57]} 3. Nc3 {[%clk 0:03:00]}  c6 {[%clk 0:02:57]} 4. e4 {[%clk 0:02:57]}  dxe4 {[%clk 0:02:57]} 5. Nxe4 {[%clk 0:02:58]}  Bb4+ {[%clk 0:02:57]} 6. Nc3 {[%clk 0:02:58]}  c5 {[%clk 0:02:56]} 7. Be3 {[%clk 0:02:54]}  Nf6 {[%clk 0:02:52]} 8. a3 {[%clk 0:02:53]}  Bxc3+ {[%clk 0:02:52]} 9. bxc3 {[%clk 0:02:54]}  O-O {[%clk 0:02:52]} 10. Bd3 {[%clk 0:02:51]}  Qa5 {[%clk 0:02:46]} 11. Qd2 {[%clk 0:02:49]}  Rd8 {[%clk 0:02:43]} 12. Ne2 {[%clk 0:02:48]}  Nc6 {[%clk 0:02:42]} 13. h4 {[%clk 0:02:34]}  cxd4 {[%clk 0:01:54]} 14. cxd4 {[%clk 0:02:30]}  Qxd2+ {[%clk 0:01:55]} 15. Kxd2 {[%clk 0:02:30]}  e5 {[%clk 0:01:55]} 16. Kc3 {[%clk 0:02:06]}  exd4+ {[%clk 0:01:09]} 17. Nxd4 {[%clk 0:02:04]}  Ne5 {[%clk 0:01:09]} 18. Be2 {[%clk 0:02:04]}  Bg4 {[%clk 0:01:07]} 19. f3 {[%clk 0:02:00]}  Bd7 {[%clk 0:01:07]} 20. Rac1 {[%clk 0:01:42]}  Rac8 {[%clk 0:01:06]} 21. Kb3 {[%clk 0:01:38]}  Re8 {[%clk 0:01:06]} 22. Bf2 {[%clk 0:01:29]}  h5 {[%clk 0:00:54]} 23. Rhe1 {[%clk 0:01:27]}  Ng6 {[%clk 0:00:46]} 24. Bf1 {[%clk 0:01:23]}  a6 {[%clk 0:00:42]} 25. Rxe8+ {[%clk 0:01:16]}  Nxe8 {[%clk 0:00:42]} 26. Bg3 {[%clk 0:01:10]}  Ne7 {[%clk 0:00:34]} 27. Bd3 {[%clk 0:01:04]}  Nc6 {[%clk 0:00:32]} 28. Nxc6 {[%clk 0:01:02]}  Rxc6 {[%clk 0:00:32]} 29. Re1 {[%clk 0:00:59]}  Be6 {[%clk 0:00:31]} 30. Rc1 {[%clk 0:00:51]}  b5 {[%clk 0:00:24]} 31. Kb4 {[%clk 0:00:50]}  bxc4 {[%clk 0:00:24]} 32. Bxc4 {[%clk 0:00:49]}  a5+ {[%clk 0:00:18]} 33. Kb5 {[%clk 0:00:42]}  Rc8 {[%clk 0:00:13]} 34. Bf4 {[%clk 0:00:37]}  Kf8 {[%clk 0:00:10]} 35. Bxe6 {[%clk 0:00:34]}  Rxc1 {[%clk 0:00:09]} 36. Bxc1 {[%clk 0:00:35]}  fxe6 {[%clk 0:00:06]} 37. Kxa5 {[%clk 0:00:36]}  Ke7 {[%clk 0:00:06]} 38. Bf4 {[%clk 0:00:35]}  Kd7 {[%clk 0:00:05]} 39. Be5 {[%clk 0:00:35]}  Nf6 {[%clk 0:00:02]} 40. Bxf6 {[%clk 0:00:33]}  gxf6 {[%clk 0:00:03]} 41. Kb5 {[%clk 0:00:33]}  f5 {[%clk 0:00:03]} 42. f4 {[%clk 0:00:31]}  Kd6 {[%clk 0:00:03]} 43. Kc4 {[%clk 0:00:31]}  Kc6 {[%clk 0:00:03]} 44. Kd4 {[%clk 0:00:30]}  Kb5 {[%clk 0:00:03]} 45. Ke5 {[%clk 0:00:31]}  Ka4 {[%clk 0:00:03]} 46. Kxe6 {[%clk 0:00:31]}  Kxa3 {[%clk 0:00:04]} 47. Kxf5 {[%clk 0:00:32]}  Kb4 {[%clk 0:00:05]} 48. Kg5 {[%clk 0:00:32]}  Kc3 {[%clk 0:00:06]} 49. Kxh5 {[%clk 0:00:33]}  Kd2 {[%clk 0:00:07]} 50. Kg5 {[%clk 0:00:33]}  Ke3 {[%clk 0:00:08]} 51. g4 {[%clk 0:00:34]}  Kf3 {[%clk 0:00:09]} 52. h5 {[%clk 0:00:34]}  Kg3 {[%clk 0:00:10]} 53. h6 {[%clk 0:00:35]}  Kh3 {[%clk 0:00:11]} 54. h7 {[%clk 0:00:36]}  Kg2 {[%clk 0:00:11]} 55. h8=Q {[%clk 0:00:36]}  Kf3 {[%clk 0:00:12]} 56. Qh3+ {[%clk 0:00:36]}  Kf2 {[%clk 0:00:13]} 57. Kh4 {[%clk 0:00:34]}  Kg1 {[%clk 0:00:12]} 58. f5 {[%clk 0:00:35]}  Kf2 {[%clk 0:00:13]} 59. f6 {[%clk 0:00:35]}  Ke2 {[%clk 0:00:08]} 60. f7 {[%clk 0:00:36]}  Kd2 {[%clk 0:00:08]} 61. f8=Q {[%clk 0:00:35]}  Ke1 {[%clk 0:00:09]} 62. Qe7+ {[%clk 0:00:35]}  Kd1 {[%clk 0:00:10]} 63. Qd6+ {[%clk 0:00:34]}  Kc1 {[%clk 0:00:11]} 64. Qc5+ {[%clk 0:00:35]}  Kb1 {[%clk 0:00:12]} 65. Qg1+ {[%clk 0:00:34]}  Kc2 {[%clk 0:00:11]} 66. Qgg2+ {[%clk 0:00:34]} 1-0

[Event "December 19 Early 2023"]
[Site "https://www.chess.com"]
[Date "2023.12.19"]
[Round "7"]
[White "Zimmermann, Ulrich"]
[Black "Puzzlebot_1294"]
[Result "0-1"]
[Board "76"]
[TimeControl "180+1"]
[WhiteFideId "24654523"]
[WhiteElo "2223"]
[BlackElo "2654"]
[WhiteTeam "GER"]
[WhiteClock "0:00:02"]
[BlackClock "0:00:02"]

1. Nf3 {[%clk 0:03:00]}  Nf6 {[%clk 0:02:57]} 2. g3 {[%clk 0:03:01]}  d5 {[%clk 0:02:54]} 3. Bg2 {[%clk 0:03:02]}  Bf5 {[%clk 0:02:49]} 4. O-O {[%clk 0:03:03]}  c6 {[%clk 0:02:47]} 5. d3 {[%clk 0:03:04]}  e6 {[%clk 0:02:46]} 6. Nbd2 {[%clk 0:03:05]}  h6 {[%clk 0:02:46]} 7. Qe1 {[%clk 0:03:06]}  Be7 {[%clk 0:02:46]} 8. e4 {[%clk 0:03:07]}  dxe4 {[%clk 0:02:47]} 9. dxe4 {[%clk 0:03:06]}  Bh7 {[%clk 0:02:48]} 10. Qe2 {[%clk 0:03:03]}  O-O {[%clk 0:02:47]} 11. Ne5 {[%clk 0:03:02]}  Nbd7 {[%clk 0:02:47]} 12. Nd3 {[%clk 0:03:02]}  Qc7 {[%clk 0:02:46]} 13. a3 {[%clk 0:03:01]}  Rfd8 {[%clk 0:02:45]} 14. Re1 {[%clk 0:02:57]}  Nc5 {[%clk 0:02:40]} 15. Nxc5 {[%clk 0:02:56]}  Bxc5 {[%clk 0:02:41]} 16. Nb3 {[%clk 0:02:56]}  Be7 {[%clk 0:02:40]} 17. Bf4 {[%clk 0:02:53]}  e5 {[%clk 0:02:39]} 18. Bd2 {[%clk 0:02:53]}  c5 {[%clk 0:02:36]} 19. Bc3 {[%clk 0:02:53]}  b6 {[%clk 0:02:35]} 20. Nd2 {[%clk 0:02:53]}  Nd7 {[%clk 0:02:34]} 21. Nc4 {[%clk 0:02:53]}  a6 {[%clk 0:02:32]} 22. Bh3 {[%clk 0:02:49]}  Bf6 {[%clk 0:02:20]} 23. Rad1 {[%clk 0:02:43]}  Nf8 {[%clk 0:02:19]} 24. f3 {[%clk 0:02:40]}  Bg6 {[%clk 0:02:13]} 25. Ne3 {[%clk 0:02:40]}  Qc6 {[%clk 0:02:07]} 26. Nd5 {[%clk 0:02:41]}  Ne6 {[%clk 0:02:05]} 27. Nxf6+ {[%clk 0:02:18]}  gxf6 {[%clk 0:02:04]} 28. Qe3 {[%clk 0:02:09]}  Kh7 {[%clk 0:01:51]} 29. Bd2 {[%clk 0:01:58]}  Ng5 {[%clk 0:01:30]} 30. Bg2 {[%clk 0:01:57]}  Rd4 {[%clk 0:01:27]} 31. c3 {[%clk 0:01:48]}  Ra4 {[%clk 0:00:51]} 32. h4 {[%clk 0:01:39]}  Ne6 {[%clk 0:00:47]} 33. h5 {[%clk 0:01:33]}  Ng5 {[%clk 0:00:43]} 34. hxg6+ {[%clk 0:01:29]}  fxg6 {[%clk 0:00:44]} 35. Bc1 {[%clk 0:01:29]}  Nf7 {[%clk 0:00:42]} 36. Rd3 {[%clk 0:01:19]}  Ra7 {[%clk 0:00:42]} 37. Red1 {[%clk 0:01:18]}  Qe6 {[%clk 0:00:40]} 38. Kh2 {[%clk 0:01:17]}  f5 {[%clk 0:00:38]} 39. Bh3 {[%clk 0:01:15]}  Qf6 {[%clk 0:00:38]} 40. exf5 {[%clk 0:01:06]}  gxf5 {[%clk 0:00:39]} 41. f4 {[%clk 0:00:56]}  exf4 {[%clk 0:00:34]} 42. gxf4 {[%clk 0:00:57]}  Re4 {[%clk 0:00:31]} 43. Qf3 {[%clk 0:00:54]}  Rae7 {[%clk 0:00:28]} 44. Qh5 {[%clk 0:00:27]}  Re2+ {[%clk 0:00:28]} 45. Kh1 {[%clk 0:00:27]}  Re1+ {[%clk 0:00:22]} 46. Rxe1 {[%clk 0:00:22]}  Rxe1+ {[%clk 0:00:23]} 47. Kg2 {[%clk 0:00:22]}  Rxc1 {[%clk 0:00:18]} 48. Bxf5+ {[%clk 0:00:21]}  Kg7 {[%clk 0:00:18]} 49. Rg3+ {[%clk 0:00:20]}  Kf8 {[%clk 0:00:18]} 50. Bg6 {[%clk 0:00:14]}  Qc6+ {[%clk 0:00:11]} 51. Rf3 {[%clk 0:00:11]}  Rd1 {[%clk 0:00:09]} 52. Bxf7 {[%clk 0:00:06]}  Rd2+ {[%clk 0:00:08]} 53. Kg3 {[%clk 0:00:06]}  Qf6 {[%clk 0:00:06]} 54. Bg6 {[%clk 0:00:06]}  Qg7 {[%clk 0:00:05]} 55. f5 {[%clk 0:00:05]}  Qe5+ {[%clk 0:00:04]} 56. Rf4 {[%clk 0:00:04]}  Qe3+ {[%clk 0:00:02]} 57. Qf3 {[%clk 0:00:03]}  Qg1+ {[%clk 0:00:02]} 58. Kh4 {[%clk 0:00:01]}  Rh2+ {[%clk 0:00:03]} 59. Qh3 {[%clk 0:00:02]}  Qg5# {[%clk 0:00:02]} 0-1

[Event "December 19 Early 2023"]
[Site "https://www.chess.com"]
[Date "2023.12.19"]
[Round "7"]
[White "Skliarov, Viktor"]
[Black "Santos Flores, Alberto"]
[Result "1/2-1/2"]
[Board "78"]
[TimeControl "180+1"]
[WhiteFideId "14106736"]
[BlackFideId "3601234"]
[WhiteElo "2301"]
[BlackElo "2229"]
[WhiteTeam "UKR"]
[BlackTeam "ECU"]
[WhiteClock "0:00:04"]
[BlackClock "0:00:03"]

1. e4 {[%clk 0:03:00]}  e6 {[%clk 0:02:59]} 2. d4 {[%clk 0:03:00]}  d5 {[%clk 0:03:00]} 3. e5 {[%clk 0:03:01]}  c5 {[%clk 0:03:00]} 4. c3 {[%clk 0:03:02]}  Qb6 {[%clk 0:03:00]} 5. Nf3 {[%clk 0:03:02]}  Nc6 {[%clk 0:03:01]} 6. a3 {[%clk 0:03:02]}  a5 {[%clk 0:02:59]} 7. Bd3 {[%clk 0:03:02]}  Bd7 {[%clk 0:02:59]} 8. Bc2 {[%clk 0:03:02]}  a4 {[%clk 0:02:59]} 9. O-O {[%clk 0:02:59]}  Nh6 {[%clk 0:02:59]} 10. c4 {[%clk 0:02:53]}  dxc4 {[%clk 0:02:55]} 11. d5 {[%clk 0:02:50]}  exd5 {[%clk 0:02:55]} 12. Qxd5 {[%clk 0:02:49]}  Be6 {[%clk 0:02:53]} 13. Qe4 {[%clk 0:02:37]}  Nf5 {[%clk 0:02:50]} 14. Nc3 {[%clk 0:02:24]}  Nfd4 {[%clk 0:02:50]} 15. Bxa4 {[%clk 0:02:12]}  Be7 {[%clk 0:02:35]} 16. Ng5 {[%clk 0:01:32]}  Bxg5 {[%clk 0:02:29]} 17. Bxg5 {[%clk 0:01:32]}  Qxb2 {[%clk 0:02:19]} 18. Bxc6+ {[%clk 0:01:03]}  Nxc6 {[%clk 0:02:05]} 19. Nd5 {[%clk 0:01:01]}  Bxd5 {[%clk 0:01:50]} 20. Qxd5 {[%clk 0:01:00]}  O-O {[%clk 0:01:50]} 21. Qxc4 {[%clk 0:00:43]}  Rxa3 {[%clk 0:01:41]} 22. Rxa3 {[%clk 0:00:36]}  Qxa3 {[%clk 0:01:41]} 23. e6 {[%clk 0:00:34]}  fxe6 {[%clk 0:01:38]} 24. Qxe6+ {[%clk 0:00:33]}  Kh8 {[%clk 0:01:38]} 25. Be7 {[%clk 0:00:20]}  Nxe7 {[%clk 0:00:58]} 26. Qxe7 {[%clk 0:00:20]}  Rb8 {[%clk 0:00:58]} 27. Rd1 {[%clk 0:00:20]}  h6 {[%clk 0:00:54]} 28. h4 {[%clk 0:00:20]}  Qa4 {[%clk 0:00:48]} 29. Rd7 {[%clk 0:00:17]}  Qa1+ {[%clk 0:00:45]} 30. Kh2 {[%clk 0:00:17]}  Qf6 {[%clk 0:00:46]} 31. Rxb7 {[%clk 0:00:11]}  Rxb7 {[%clk 0:00:27]} 32. Qe8+ {[%clk 0:00:05]}  Kh7 {[%clk 0:00:23]} 33. Qe4+ {[%clk 0:00:06]}  Kg8 {[%clk 0:00:23]} 34. Qxb7 {[%clk 0:00:05]}  Qxh4+ {[%clk 0:00:19]} 35. Kg1 {[%clk 0:00:05]}  Qd4 {[%clk 0:00:19]} 36. Qc8+ {[%clk 0:00:05]}  Kf7 {[%clk 0:00:18]} 37. Qf5+ {[%clk 0:00:05]}  Kg8 {[%clk 0:00:17]} 38. Qc8+ {[%clk 0:00:05]}  Kh7 {[%clk 0:00:16]} 39. Qf5+ {[%clk 0:00:05]}  g6 {[%clk 0:00:13]} 40. Qf7+ {[%clk 0:00:04]}  Qg7 {[%clk 0:00:13]} 41. Qc4 {[%clk 0:00:03]}  Qc7 {[%clk 0:00:13]} 42. g3 {[%clk 0:00:03]}  Kg7 {[%clk 0:00:13]} 43. f4 {[%clk 0:00:03]}  h5 {[%clk 0:00:14]} 44. Kf2 {[%clk 0:00:03]}  Qd6 {[%clk 0:00:13]} 45. Kg2 {[%clk 0:00:02]}  Qd4 {[%clk 0:00:11]} 46. Qe6 {[%clk 0:00:02]}  c4 {[%clk 0:00:10]} 47. Qe7+ {[%clk 0:00:02]}  Kh6 {[%clk 0:00:10]} 48. Qg5+ {[%clk 0:00:03]}  Kh7 {[%clk 0:00:09]} 49. Qe7+ {[%clk 0:00:04]}  Qg7 {[%clk 0:00:10]} 50. Qc5 {[%clk 0:00:04]}  Qf7 {[%clk 0:00:08]} 51. Kf3 {[%clk 0:00:03]}  Qe6 {[%clk 0:00:06]} 52. Kf2 {[%clk 0:00:03]}  Qf7 {[%clk 0:00:05]} 53. Kf3 {[%clk 0:00:03]}  Qe6 {[%clk 0:00:05]} 54. Kf2 {[%clk 0:00:03]}  Qf7 {[%clk 0:00:03]} 55. Kf3 {[%clk 0:00:04]} 1/2-1/2